bitfinex/quotes_ETHUSD_20251023
["timestamp","ask_amount","ask_price","bid_price","bid_amount"]
[1761203528144,2.57285735,3886.8,3886.6,0.50688]
[1761203528356,2.57285735,3886.8,3886.6,0.97888]
[1761203528525,2.57287673,3886.7,3886.6,0.97888]
[1761203528842,2.57287673,3886.7,3886.6,0.50688]
[1761203529220,2.57287673,3886.7,3886.6,0.97888]
[1761203529446,2.57287673,3886.7,3886.6,1.4487288]
[1761203529747,2.57287673,3886.7,3886.6,0.97888]
[1761203531753,2.57287673,3886.7,3886.6,1.10768]
[1761203542194,0.001,3886.8,3886.6,1.10768]
[1761203542381,2.57381053,3886.8,3886.7,1.00460876]
[1761203542587,2.57381053,3886.8,3886.7,1.47010888]
[1761203543093,0.001,3886.8,3886.7,1.47010888]
[1761203546207,0.001,3886.8,3886.7,1.49583764]
[1761203546377,0.001,3886.8,3886.7,1.47010888]
[1761203550520,2.57381053,3886.8,3886.7,0.97888]
[1761203551870,0.001,3886.8,3886.7,0.97888]
[1761203552467,2.57381053,3886.8,3886.7,0.96188]
[1761203553215,2.57381053,3886.8,3886.7,0.50688]
[1761203553418,2.57381053,3886.8,3886.7,0.96188]
[1761203555020,2.57381053,3886.8,3886.7,1.398348]
[1761203555021,0.001,3886.8,3886.7,1.398348]
[1761203555179,2.57381053,3886.8,3886.7,1.398348]
[1761203555921,0.001,3886.8,3886.7,1.398348]
[1761203557817,2.57381053,3886.8,3886.7,1.398348]
[1761203558784,2.57381053,3886.8,3886.7,0.96188]
[1761203559191,0.001,3886.8,3886.7,0.96188]
[1761203580879,0.001,3886.8,3886.6,0.1308]
[1761203580880,2.57287673,3886.7,3886.6,0.1308]
[1761203581193,2.67187673,3886.7,3886.6,3.3968]
[1761203581549,2.57287673,3886.7,3886.6,3.3968]
[1761203581774,2.67187673,3886.7,3886.6,3.3968]
[1761203582162,2.67187673,3886.7,3886.6,3.90368]
[1761203582376,2.67187673,3886.7,3886.6,3.3968]
[1761203582891,2.67187673,3886.7,3886.5,0.002]
[1761203583093,4.97576953,3886.4,3886.3,0.002]
[1761203583252,6.53096953,3886.4,3886.3,0.002]
[1761203583447,4.12827533,3886.4,3886.3,0.002]
[1761203583655,2.57307533,3886.4,3886.3,0.002]
[1761203584712,4.57617384,3886.4,3886.3,0.002]
[1761203584875,4.57617384,3886.4,3886.3,0.50888]
[1761203585077,4.67517384,3886.4,3886.3,0.50888]
[1761203590016,6.23037384,3886.4,3886.3,0.50888]
[1761203590401,7.00311662,3886.4,3886.3,0.50888]
[1761203590607,7.00311662,3886.4,3886.3,0.002]
[1761203600247,6.90411662,3886.4,3886.3,0.002]
[1761203600923,7.00311662,3886.4,3886.3,0.002]
[1761203613176,2.57334019,3886.0,3885.9,0.002]
[1761203613376,6.1316387,3886.0,3885.9,0.002]
[1761203613671,6.2306387,3886.0,3885.9,0.002]
[1761203613879,7.00353478,3886.0,3885.9,0.002]
[1761203615492,6.90453478,3886.0,3885.9,0.002]
[1761203615660,6.13190361,3885.6,3885.3,0.50688]
[1761203615860,8.13500212,3885.6,3885.3,0.50688]
[1761203616358,8.90792209,3885.6,3885.3,0.50688]
[1761203617490,6.90482358,3885.6,3885.3,0.50688]
[1761203619208,8.90792209,3885.6,3885.3,0.50688]
[1761203619372,6.90482358,3885.6,3885.2,3.266]
[1761203619700,6.90482358,3885.6,3884.0,0.217]
[1761203619701,2.574599,3884.1,3884.0,0.217]
[1761203619871,1.5552,3885.5,3884.0,0.6577]
[1761203620062,2.57433172,3884.6,3884.1,0.4407]
[1761203620262,4.57725918,3884.8,3884.2,0.50688]
[1761203620263,1.5552,3884.7,3884.2,0.50688]
[1761203620566,2.57420135,3884.7,3884.6,0.50688]
[1761203620755,2.57420135,3884.7,3884.6,0.897048]
[1761203620958,2.57420135,3884.7,3884.6,1.337748]
[1761203621270,3.347197,3884.7,3884.6,1.337748]
[1761203621659,3.347197,3884.7,3884.6,0.94758]
[1761203622301,3.347197,3884.7,3884.6,3.7067]
[1761203622883,3.347197,3884.7,3884.6,3.77288]
[1761203625736,5.35029551,3884.7,3884.6,3.77288]
[1761203626193,5.35029551,3884.7,3884.6,4.21358]
[1761203626575,2.77609416,3884.7,3884.6,3.77288]
[1761203626776,0.77299565,3884.7,3884.6,4.590868]
[1761203627986,3.347197,3884.7,3884.6,4.590868]
[1761203628177,3.347197,3884.7,3884.6,4.21358]
[1761203628504,5.35029551,3884.7,3884.6,4.21358]
[1761203629611,5.35029551,3884.7,3884.6,3.77288]
[1761203631330,6.90549551,3884.7,3884.6,3.77288]
[1761203632231,6.90549551,3884.7,3884.6,3.90168]
[1761203632528,6.90549551,3884.7,3884.0,0.217]
[1761203632529,2.574599,3884.1,3884.0,0.217]
[1761203632709,2.574599,3884.1,3884.0,3.483]
[1761203632916,2.574599,3884.1,3884.0,3.90168]
[1761203633094,2.574599,3884.1,3884.0,4.34238]
[1761203633292,3.34774804,3884.1,3884.0,4.34238]
[1761203634229,3.34774804,3884.1,3884.0,3.90168]
[1761203636414,3.34774804,3884.1,3884.0,0.63568]
[1761203637041,3.34774804,3884.1,3884.0,0.1288]
[1761203637251,2.57466529,3884.0,3883.9,3.266]
[1761203637424,4.5777638,3884.0,3883.9,3.266]
[1761203638152,2.57473158,3883.9,3883.8,0.002]
[1761203638357,4.38963158,3883.9,3883.8,0.002]
[1761203641029,4.38963158,3883.9,3883.8,0.002]
[1761203642235,4.28953158,3883.9,3883.8,0.002]
[1761203642636,4.38963158,3883.9,3883.8,0.002]
[1761203642865,4.28953158,3883.9,3883.8,0.002]
[1761203644563,4.12993158,3883.9,3883.8,0.002]
[1761203644775,2.57473158,3883.9,3883.8,0.4368]
[1761203645776,4.12993158,3883.9,3883.8,0.002]
[1761203646846,6.53702607,3883.9,3883.8,0.002]
[1761203648067,6.53702607,3883.9,3883.8,0.1308]
[1761203648246,6.53702607,3883.9,3883.8,0.002]
[1761203648453,6.69542607,3883.9,3883.8,0.002]
[1761203648674,6.79672607,3883.9,3883.8,0.002]
[1761203650069,7.30360607,3883.9,3883.8,0.002]
[1761203650460,7.04390607,3883.9,3883.8,0.002]
[1761203650664,6.53702607,3883.9,3883.8,0.002]
[1761203650862,6.53702607,3883.9,3883.8,0.4368]
[1761203651064,6.97182607,3883.9,3883.8,0.002]
[1761203653380,7.23152607,3883.9,3883.8,0.002]
[1761203654588,7.23152607,3883.9,3882.5,4.20904748]
[1761203654589,2.57559367,3882.6,3882.5,0.13444748]
[1761203654770,2.57559367,3882.6,3881.6,0.2215]
[1761203654771,2.5757927,3882.3,3882.2,0.2215]
[1761203654972,2.40709449,3883.0,3882.2,0.2215]
[1761203655283,2.57572635,3882.4,3882.3,0.94168]
[1761203656288,2.57572635,3882.4,3881.6,0.2215]
[1761203656289,2.5757927,3882.3,3882.0,3.7018]
[1761203656590,2.5759254,3882.1,3882.0,3.7018]
[1761203656787,2.5759254,3882.1,3882.0,4.20868]
[1761203656956,2.5759254,3882.1,3882.0,0.50688]
[1761203657161,2.57619084,3881.7,3881.6,0.2215]
[1761203657688,2.57619084,3881.7,3881.6,0.6563]
[1761203657898,0.77359363,3882.4,3881.6,1.16318]
[1761203658058,2.57600053,3882.0,3881.7,0.94168]
[1761203658386,2.57607084,3881.9,3881.7,0.94168]
[1761203658589,2.57607084,3881.9,3881.8,0.94168]
[1761203658767,2.57607084,3881.9,3881.8,0.50688]
[1761203658962,2.57593674,3882.1,3881.9,0.50688]
[1761203659172,2.57599175,3882.0,3881.9,0.50688]
[1761203659992,2.57625721,3881.6,3881.2,0.00285178]
[1761203660204,4.98355083,3881.3,3881.2,0.43765178]
[1761203660689,2.57641653,3881.4,3881.2,0.43765178]
[1761203660991,2.57645634,3881.3,3881.2,0.43765178]
[1761203661353,2.57645634,3881.3,3881.2,0.00285178]
[1761203661558,2.57645634,3881.3,3881.2,0.43765178]
[1761203661967,2.57645634,3881.3,3881.2,0.94453178]
[1761203662989,2.57645634,3881.3,3881.2,0.50973178]
[1761203663190,2.57645634,3881.3,3881.2,0.63853178]
[1761203666091,2.57645634,3881.3,3881.2,0.13165178]
[1761203667101,4.98355083,3881.3,3881.2,0.00285178]
[1761203667598,5.75741386,3881.3,3881.2,0.00285178]
[1761203668196,4.98355083,3881.3,3881.2,0.45725178]
[1761203669707,4.98355083,3881.3,3881.2,0.00285178]
[1761203670506,2.57645634,3881.3,3881.2,0.00285178]
[1761203671396,0.77379516,3881.4,3881.3,0.50688]
[1761203671577,2.57645634,3881.3,3881.2,0.00285178]
[1761203671777,4.98355083,3881.3,3881.2,0.00285178]
[1761203674822,2.40709449,3881.6,3881.3,0.50688]
[1761203675124,2.57652272,3881.2,3881.1,0.002]
[1761203675324,4.13172272,3881.2,3881.1,0.2368]
[1761203675489,1.5552,3881.2,3881.1,0.7021]
[1761203675692,0.70295178,3881.6,3881.1,0.7021]
[1761203675929,2.57645634,3881.3,3881.2,0.4653]
[1761203677224,2.57645634,3881.3,3881.2,0.5941]
[1761203677423,2.40709449,3881.5,3881.2,0.5941]
[1761203677596,4.13158996,3881.4,3881.3,0.4653]
[1761203678013,4.13158996,3881.4,3881.3,0.5941]
[1761203678736,4.13158996,3881.4,3881.3,0.1288]
[1761203679428,1.5552,3881.4,3881.3,0.1288]
[1761203679634,4.13158996,3881.4,3881.3,0.5941]
[1761203680818,4.13158996,3881.4,3881.3,0.1288]
[1761203683538,4.13158996,3881.4,3881.3,0.5941]
[1761203684237,2.57630692,3881.6,3881.4,0.50688]
[1761203684441,2.40709449,3882.1,3881.6,0.50688]
[1761203684618,2.57604529,3882.0,3881.6,0.50688]
[1761203684819,2.5757927,3882.3,3882.0,0.1288]
[1761203685018,4.13105904,3882.2,3882.1,0.4653]
[1761203685342,2.57608596,3881.9,3881.7,0.4653]
[1761203685641,2.57612447,3881.8,3881.7,0.4653]
[1761203686143,2.57606111,3881.9,3881.8,0.50688]
[1761203686515,2.57606111,3881.9,3881.8,0.4653]
[1761203686945,2.57567874,3882.5,3881.8,0.4653]
[1761203687121,2.57590693,3882.2,3881.9,3.78788]
[1761203687445,2.57599175,3882.0,3881.9,3.78788]
[1761203687939,2.57579729,3882.3,3881.9,3.91668]
[1761203688140,2.57579729,3882.3,3882.1,0.50688]
[1761203688341,1.5552,3882.4,3882.1,0.50688]
[1761203688638,4.13092635,3882.4,3882.3,0.50688]
[1761203689014,4.13092635,3882.4,3882.3,0.97218]
[1761203689934,2.57572635,3882.4,3882.3,0.97218]
[1761203690862,2.57572635,3882.4,3882.3,0.4653]
[1761203691352,2.5757927,3882.3,3882.2,0.87048]
[1761203691544,4.98288719,3882.3,3882.2,0.87048]
[1761203692453,2.5757927,3882.3,3882.2,1.33578]
[1761203693381,4.1309927,3882.3,3882.2,0.63568]
[1761203694047,4.1309927,3882.3,3882.2,0.1288]
[1761203695256,6.53808719,3882.3,3882.2,0.5941]
[1761203695758,6.53808719,3882.3,3882.2,0.1288]
[1761203697576,1.5552,3882.1,3881.4,3.282]
[1761203697748,2.40709449,3882.1,3881.8,0.1288]
[1761203697947,4.13125811,3881.9,3881.8,0.1288]
[1761203698147,4.13125811,3881.9,3881.8,3.4138]
[1761203700474,4.13125811,3881.9,3881.8,3.285]
[1761203701164,4.34095811,3881.9,3881.8,3.285]
[1761203701358,4.43995811,3881.9,3881.8,3.285]
[1761203701566,4.34095811,3881.9,3881.8,3.285]
[1761203701742,4.13132447,3881.8,3881.7,0.1288]
[1761203701960,2.57632358,3881.5,3881.4,3.288]
[1761203702173,4.98341807,3881.5,3881.4,3.288]
[1761203702371,4.98341807,3881.5,3881.4,3.4168]
[1761203702574,2.57632358,3881.5,3881.4,3.4168]
[1761203702776,4.98341807,3881.5,3881.4,3.4168]
[1761203705154,6.53861807,3881.5,3881.4,3.4168]
[1761203706691,2.57605811,3881.9,3881.5,0.50688]
[1761203706692,2.57625721,3881.6,3881.5,0.50688]
[1761203706856,4.5839915,3881.6,3881.5,0.93858]
[1761203707852,4.5839915,3881.6,3881.5,0.50688]
[1761203708053,4.5839915,3881.6,3881.5,0.93858]
[1761203708585,2.57632358,3881.5,3881.4,3.79488]
[1761203709457,1.5562,3882.4,3881.5,0.50688]
[1761203709782,4.5839915,3881.6,3881.5,0.50688]
[1761203710184,4.5839915,3881.6,3881.5,0.93858]
[1761203711385,2.57650598,3881.3,3881.2,0.50688]
[1761203711559,4.58424027,3881.3,3881.2,3.79488]
[1761203711887,4.58424027,3881.3,3881.2,4.22658]
[1761203712810,2.57650598,3881.3,3881.2,4.22658]
[1761203713104,1.5552,3882.2,3881.2,4.22658]
[1761203713295,2.57631378,3881.6,3881.4,0.50688]
[1761203713495,2.57631378,3881.6,3881.5,0.4317]
[1761203714209,4.58393466,3881.7,3881.5,0.4317]
[1761203714375,4.58393466,3881.7,3881.6,3.79388]
[1761203714977,4.58393466,3881.7,3881.6,4.22558]
[1761203715175,4.58393466,3881.7,3881.6,3.79388]
[1761203715586,2.57620037,3881.7,3881.6,4.22558]
[1761203715787,4.58393466,3881.7,3881.6,4.22558]
[1761203715990,4.58393466,3881.7,3881.6,3.79388]
[1761203716404,4.58393466,3881.7,3881.6,4.22558]
[1761203716619,4.58393466,3881.7,3881.6,3.4158]
[1761203717027,6.13913466,3881.7,3881.6,3.4158]
[1761203717827,6.13913466,3881.7,3881.1,0.002]
[1761203717828,1.5552,3881.6,3881.1,0.002]
[1761203718121,4.13172272,3881.2,3881.1,0.002]
[1761203718817,6.23955701,3881.2,3881.1,0.002]
[1761203720193,4.13172272,3881.2,3881.1,0.002]
[1761203721629,6.23955701,3881.2,3881.1,0.002]
[1761203721809,4.58438979,3881.0,3880.9,3.29]
[1761203722018,2.5766555,3881.0,3880.9,3.29]
[1761203722387,4.58438979,3881.0,3880.9,3.29]
[1761203723217,6.13958979,3881.0,3880.9,3.29]
[1761203724887,2.57692109,3880.6,3880.5,3.79788]
[1761203725126,4.58465538,3880.6,3880.5,3.79788]
[1761203725723,4.58465538,3880.6,3880.5,4.22958]
[1761203725916,4.58465538,3880.6,3880.5,3.79788]
[1761203726225,4.58465538,3880.6,3880.5,3.79988]
[1761203727229,4.58465538,3880.6,3880.5,3.293]
[1761203727815,4.58465538,3880.6,3880.5,3.8535]
[1761203728022,4.58465538,3880.6,3880.5,3.4218]
[1761203728809,2.00773429,3880.6,3880.5,3.293]
[1761203729001,4.58465538,3880.6,3880.5,3.293]
[1761203730217,2.57692109,3880.6,3880.5,3.79988]
[1761203730413,2.57692109,3880.6,3880.5,0.002]
[1761203730615,2.67702109,3880.6,3880.5,0.002]
[1761203731412,2.57692109,3880.6,3880.5,0.002]
[1761203732926,4.13212109,3880.6,3880.5,0.002]
[1761203733641,6.13985538,3880.6,3880.5,0.002]
[1761203735845,0.001,3881.2,3880.5,0.462]
[1761203736047,0.001,3881.2,3880.6,0.50688]
[1761203736223,2.57672189,3880.9,3880.8,0.50688]
[1761203736534,0.001,3881.2,3881.1,0.73558]
[1761203736535,2.57752272,3881.2,3881.1,0.73558]
[1761203736724,2.57752272,3881.2,3881.1,4.02158]
[1761203736934,2.57752272,3881.2,3881.1,4.48158]
[1761203737120,2.57752272,3881.2,3881.1,3.79288]
[1761203737320,4.58525701,3881.2,3881.1,3.79288]
[1761203738659,4.58525701,3881.2,3881.1,3.286]
[1761203738660,6.14045701,3881.2,3881.1,3.286]
[1761203738856,6.14045701,3881.2,3880.6,0.2287]
[1761203738857,2.57685469,3880.7,3880.6,0.2287]
[1761203739051,2.57692109,3880.6,3880.5,0.002]
[1761203741562,4.13212109,3880.6,3880.5,0.002]
[1761203744535,4.23112109,3880.6,3880.5,0.002]
[1761203744738,4.13212109,3880.6,3880.5,0.002]
[1761203746571,4.58465538,3880.6,3880.5,4.25088]
[1761203748975,4.58465538,3880.6,3880.5,4.37968]
[1761203749275,2.57691213,3880.7,3880.6,0.50688]
[1761203749673,2.57691213,3880.7,3880.6,0.63568]
[1761203749899,2.57691213,3880.7,3880.6,1.09568]
[1761203750070,2.57691213,3880.7,3880.6,0.63568]
[1761203750270,2.57691213,3880.7,3880.6,1.09568]
[1761203753191,2.57691213,3880.7,3880.6,0.1288]
[1761203753506,2.57691213,3880.7,3880.6,0.5888]
[1761203753891,2.57691213,3880.7,3880.6,0.1288]
[1761203754392,2.57691213,3880.7,3880.6,1.09568]
[1761203754594,2.57691213,3880.7,3880.6,4.37468]
[1761203755293,2.57691213,3880.7,3880.6,3.91468]
[1761203755490,2.57691213,3880.7,3880.6,4.37468]
[1761203756294,2.57691213,3880.7,3880.6,3.91468]
[1761203757472,2.57691213,3880.7,3880.6,4.37468]
[1761203758277,0.001,3881.2,3880.7,0.50688]
[1761203758606,0.001,3881.2,3881.1,0.73558]
[1761203758808,0.001,3881.2,3881.1,4.14538]
[1761203759009,0.001,3881.2,3881.1,4.59588]
[1761203761779,2.57752272,3881.2,3881.1,0.1288]
[1761203762112,2.57752272,3881.2,3881.1,3.4098]
[1761203762604,2.57752272,3881.2,3881.1,4.0848]
[1761203762810,2.57752272,3881.2,3881.1,4.59168]
[1761203765614,0.001,3881.2,3881.1,5.050848]
[1761203767716,0.001,3881.2,3881.1,4.59168]
[1761203767717,4.9873045,3881.2,3881.1,4.59168]
[1761203767917,0.001,3881.2,3881.1,4.59168]
[1761203769097,0.001,3881.2,3881.1,3.91668]
[1761203769406,2.57752272,3881.2,3881.1,0.63568]
[1761203769604,2.57752272,3881.2,3881.1,3.91668]
[1761203772120,2.57752272,3881.2,3881.1,4.36718]
[1761203772538,2.57752272,3881.2,3881.1,3.91668]
[1761203772726,2.57752272,3881.2,3881.1,4.59168]
[1761203772927,0.001,3881.2,3881.1,4.59168]
[1761203773252,2.57752272,3881.2,3881.1,4.14118]
[1761203773557,2.57752272,3881.2,3881.1,3.91668]
[1761203774141,2.57752272,3881.2,3881.1,4.59168]
[1761203774536,0.001,3881.2,3881.1,4.59168]
[1761203775410,0.001,3881.2,3881.1,5.050848]
[1761203777713,0.001,3881.2,3881.1,7.62743711]
[1761203777915,0.001,3881.2,3881.1,5.050848]
[1761203778231,0.001,3881.2,3881.1,7.62743711]
[1761203781638,0.001,3881.2,3881.1,7.62943711]
[1761203782039,0.001,3881.2,3881.1,11.47943711]
[1761203787577,0.001,3881.2,3881.1,13.03463711]
[1761203788583,0.001,3881.2,3881.1,13.06463711]
[1761203790480,0.001,3881.2,3881.1,4.37843711]
[1761203790684,0.001,3881.2,3881.1,5.45175711]
[1761203790871,0.001,3881.2,3881.1,8.73075711]
[1761203791054,0.001,3881.2,3881.1,10.79283711]
[1761203795696,0.001,3881.2,3881.1,14.64283711]
[1761203800698,0.001,3881.2,3881.1,14.77163711]
[1761203806311,0.001,3881.2,3881.1,10.92163711]
[1761203806630,0.001,3881.6,3881.5,4.63840358]
[1761203806801,0.001,3881.6,3881.5,9.4300888]
[1761203807127,0.001,3881.6,3881.5,9.40432557]
[1761203808892,0.001,3881.6,3881.5,9.71432557]
[1761203809128,0.001,3881.6,3881.5,8.15912557]
[1761203810322,0.001,3881.6,3881.5,7.21554557]
[1761203810542,0.001,3881.6,3881.5,10.94544557]
[1761203811057,0.001,3881.6,3881.5,11.00142557]
[1761203811456,0.001,3881.6,3881.5,10.69142557]
[1761203813454,0.001,3881.6,3881.5,11.14232557]
[1761203820656,0.001,3881.6,3881.5,11.13542557]
[1761203823576,0.001,3881.6,3881.5,10.69142557]
[1761203823972,0.001,3881.6,3881.5,11.13542557]
[1761203826496,0.001,3881.6,3881.5,14.98542557]
[1761203828483,0.001,3881.6,3881.5,11.13542557]
[1761203828889,0.001,3881.6,3881.5,11.14542557]
[1761203834781,0.1039,3881.6,3881.1,0.461168]
[1761203834988,0.1039,3881.6,3881.2,5.85851632]
[1761203835204,0.30980354,3881.6,3881.2,3.282]
[1761203835376,0.30980354,3881.6,3881.3,0.50688]
[1761203835576,0.20690354,3881.6,3881.4,2.57634299]
[1761203836012,0.1029,3881.5,3881.4,2.57634299]
[1761203836977,0.1029,3881.5,3881.4,3.08322299]
[1761203837495,0.20690354,3881.6,3881.5,3.08320358]
[1761203837701,0.20690354,3881.6,3881.5,6.38196681]
[1761203837899,0.20690354,3881.6,3881.5,6.35620358]
[1761203838506,0.20690354,3881.6,3881.5,3.77988]
[1761203838710,0.30980354,3881.6,3881.5,3.77988]
[1761203841265,2.57632358,3881.5,3881.4,3.273]
[1761203841402,4.68545816,3881.5,3881.4,3.273]
[1761203841597,4.68545816,3881.5,3881.4,3.77988]
[1761203841802,0.1029,3881.5,3881.4,3.77988]
[1761203842027,2.10913458,3881.5,3881.4,3.77988]
[1761203842421,4.68545816,3881.5,3881.4,3.77988]
[1761203844936,4.68545816,3881.5,3881.4,3.90868]
[1761203845832,5.45909169,3881.5,3881.4,3.90868]
[1761203848115,2.88276811,3881.5,3881.4,3.90868]
[1761203848519,5.45909169,3881.5,3881.4,3.90868]
[1761203850108,2.88276811,3881.5,3881.4,3.90868]
[1761203850539,0.87653353,3881.5,3881.4,3.90868]
[1761203850726,0.77363353,3881.5,3881.4,4.299748]
[1761203851041,0.77363353,3881.5,3881.4,3.90868]
[1761203851431,0.77363353,3881.5,3881.4,6.48506996]
[1761203851839,0.77363353,3881.5,3881.4,3.90868]
[1761203852849,0.87653353,3881.5,3881.4,3.90868]
[1761203855645,0.77363353,3881.5,3881.4,3.90868]
[1761203855949,2.88276811,3881.5,3881.4,3.90868]
[1761203857661,2.77986811,3881.5,3881.4,3.90868]
[1761203858242,0.77363353,3881.5,3881.4,3.90868]
[1761203860041,0.87653353,3881.5,3881.4,3.90868]
[1761203860441,0.77363353,3881.5,3881.4,3.90868]
[1761203860961,0.87653353,3881.5,3881.4,3.90868]
[1761203861661,0.87653353,3881.5,3881.4,0.63568]
[1761203861962,0.87653353,3881.5,3881.4,3.90868]
[1761203861963,3.45285711,3881.5,3881.4,3.90868]
[1761203865132,3.45285711,3881.5,3881.1,0.002]
[1761203865133,2.57652272,3881.2,3881.1,0.002]
[1761203865332,6.1379573,3881.2,3881.1,3.275]
[1761203865560,6.2408573,3881.2,3881.1,3.275]
[1761203865948,7.01453872,3881.2,3881.1,3.78188]
[1761203868071,6.91163872,3881.2,3881.1,3.78188]
[1761203868246,5.45933872,3881.2,3881.1,3.78188]
[1761203869472,3.35020414,3881.2,3881.1,3.78188]
[1761203869674,5.35643872,3881.2,3881.1,3.78188]
[1761203870437,5.45933872,3881.2,3881.1,3.78188]
[1761203875260,5.45933872,3881.2,3881.1,3.91068]
[1761203876957,3.45310414,3881.2,3881.1,3.91068]
[1761203877158,5.45933872,3881.2,3881.1,3.91068]
[1761203878059,5.35643872,3881.2,3881.1,3.91068]
[1761203882099,3.35020414,3881.2,3881.1,3.91068]
[1761203882287,0.77368142,3881.2,3881.1,4.536448]
[1761203882470,0.001,3881.5,3881.2,0.50688]
[1761203882664,0.77356172,3881.4,3881.2,0.95868]
[1761203883202,2.00723458,3881.5,3881.4,0.50688]
[1761203883380,2.7807963,3881.5,3881.4,3.77988]
[1761203884380,2.00723458,3881.5,3881.4,3.77988]
[1761203884973,0.001,3881.5,3881.4,4.7305048]
[1761203885414,0.001,3881.5,3881.4,4.2787048]
[1761203886108,0.001,3881.5,3881.4,7.30689476]
[1761203887104,0.001,3881.5,3881.4,11.15689476]
[1761203888292,0.001,3881.5,3881.4,7.30689476]
[1761203888496,0.001,3881.5,3881.4,8.86209476]
[1761203890595,0.001,3881.5,3881.4,12.71209476]
[1761203893412,0.001,3881.5,3881.4,10.64901476]
[1761203893800,0.001,3881.5,3881.4,12.71109476]
[1761203898028,0.001,3881.5,3881.4,8.86109476]
[1761203898330,0.001,3881.5,3881.4,12.71109476]
[1761203901327,0.001,3881.5,3881.4,11.15589476]
[1761203903525,0.001,3881.5,3881.4,11.28469476]
[1761203904332,0.001,3881.5,3881.4,12.83989476]
[1761203907059,0.001,3881.5,3881.4,12.81819476]
[1761203910830,0.001,3881.6,3881.5,4.63840358]
[1761203911154,0.001,3881.6,3881.5,10.91653106]
[1761203912029,0.001,3881.6,3881.5,7.06653106]
[1761203912851,0.001,3881.6,3881.5,7.37653106]
[1761203914456,0.001,3881.6,3881.5,6.12195106]
[1761203914658,0.001,3881.6,3881.5,6.55965106]
[1761203914839,0.001,3881.6,3881.5,7.06653106]
[1761203917430,0.001,3881.6,3881.5,5.07363106]
[1761203917626,0.001,3881.6,3881.5,6.35420358]
[1761203922771,0.001,3881.6,3881.5,6.35620358]
[1761203923256,0.001,3881.6,3881.5,3.77988]
[1761203923869,0.001,3881.6,3881.5,6.35620358]
[1761203925455,0.001,3881.6,3881.5,6.79390358]
[1761203925650,0.001,3881.6,3881.5,7.7672448]
[1761203925871,0.001,3881.6,3881.5,7.3295448]
[1761203928180,0.001,3881.6,3881.5,7.7672448]
[1761203928771,0.001,3881.6,3881.5,7.3295448]
[1761203930563,0.001,3881.6,3881.5,6.35620358]
[1761203930761,0.1011,3881.6,3881.5,6.35620358]
[1761203931175,0.001,3881.6,3881.5,6.35620358]
[1761203932951,0.001,3881.6,3881.5,4.35888]
[1761203933157,0.1011,3881.6,3881.5,4.35888]
[1761203933483,0.1011,3881.6,3881.5,7.62888]
[1761203936583,0.1011,3881.6,3881.5,3.77888]
[1761203937176,0.1011,3881.6,3881.5,3.272]
[1761203937577,2.67735721,3881.6,3881.5,3.272]
[1761203938088,0.1011,3881.6,3881.5,3.77888]
[1761203940291,2.67735721,3881.6,3881.5,3.77888]
[1761203941296,0.1011,3881.6,3881.5,3.77888]
[1761203941499,0.001,3881.6,3881.5,3.77888]
[1761203941794,0.001,3881.6,3881.5,3.90768]
[1761203942493,0.001,3881.6,3881.5,7.75768]
[1761203943670,0.1011,3881.6,3881.5,7.75768]
[1761203944076,0.1011,3881.6,3881.5,3.90768]
[1761203945901,0.1011,3881.6,3881.5,0.63768]
[1761203946100,0.1011,3881.6,3881.5,3.90768]
[1761203946398,2.67735721,3881.6,3881.5,3.90768]
[1761203950666,4.68546396,3881.6,3881.5,3.90768]
[1761203951690,4.68546396,3881.6,3881.5,3.4008]
[1761203952502,6.24066396,3881.6,3881.5,0.002]
[1761203952722,6.36946396,3881.6,3881.5,0.002]
[1761203952864,7.14323517,3881.6,3881.5,0.002]
[1761203959704,7.14323517,3881.6,3881.1,0.002]
[1761203959705,2.57652272,3881.2,3881.1,0.002]
[1761203959904,6.13982947,3881.2,3881.1,0.002]
[1761203960135,6.23992947,3881.2,3881.1,0.002]
[1761203960321,7.01376256,3881.2,3881.1,0.002]
[1761203960631,9.02186931,3881.2,3881.1,0.002]
[1761203960805,7.14414897,3881.2,3881.1,0.002]
[1761203961643,9.15225572,3881.2,3881.1,0.002]
[1761203968352,6.14002864,3880.9,3880.8,0.002]
[1761203968642,9.41002864,3880.9,3880.8,0.002]
[1761203968829,9.51012864,3880.9,3880.8,0.002]
[1761203969031,9.61332768,3880.9,3880.8,0.002]
[1761203969427,4.13198829,3880.8,3880.6,0.002]
[1761203969648,4.23208829,3880.8,3880.6,0.002]
[1761203970216,5.00608109,3880.8,3880.6,0.002]
[1761203970418,5.13488109,3880.8,3880.6,0.002]
[1761203971321,4.13205469,3880.7,3880.6,0.002]
[1761203971510,4.23215469,3880.7,3880.6,0.002]
[1761203976250,2.57705391,3880.4,3880.3,0.002]
[1761203976434,6.14036066,3880.4,3880.3,0.002]
[1761203976743,6.36926066,3880.4,3880.3,0.002]
[1761203976949,7.13306066,3880.4,3880.3,0.002]
[1761203983249,2.57758531,3879.6,3879.5,0.50688]
[1761203983567,6.14089206,3879.6,3879.5,0.50688]
[1761203985360,6.23989206,3879.6,3879.5,0.50688]
[1761203985772,6.14089206,3879.6,3879.5,0.50688]
[1761203985980,4.13278531,3879.6,3879.5,0.50688]
[1761203986151,6.14089206,3879.6,3879.5,0.50688]
[1761203987632,4.13278531,3879.6,3879.5,0.94478]
[1761203987874,3.56330675,3879.8,3879.5,1.07358]
[1761203988176,4.13271888,3879.7,3879.6,0.94478]
[1761203988559,4.13271888,3879.7,3879.6,1.07358]
[1761203993149,4.13271888,3879.7,3879.6,0.63568]
[1761203993455,4.13271888,3879.7,3879.6,1.07358]
[1761203994088,4.13271888,3879.7,3879.6,0.63568]
[1761203995288,4.13271888,3879.7,3879.6,0.50688]
[1761203997997,6.14082563,3879.7,3879.6,0.94478]
[1761204000967,6.14082563,3879.7,3879.6,0.63568]
[1761204003274,6.14082563,3879.7,3879.6,0.50688]